fUSD/lending_fUSD_20250410
["ID","MTS","AMOUNT","RATE_DAILY","PERIOD"]
[357630672,1744254296302,-279.02425434,0.000149,2]
[357630673,1744254326616,167.32,0.00014639,2]
[357630674,1744254329885,160.9,0.00014639,2]
[357630676,1744254353205,1037.51,0.00014639,2]
[357630677,1744254386320,801.38,0.00014659,2]
[357630678,1744254398912,5159.35,0.00014659,2]
[357630679,1744254399574,-181.07,0.000149,2]
[357630681,1744254479308,4939.88,0.00014659,2]
[357630682,1744254483202,-181.07,0.000149,2]
[357630683,1744254495479,2000.0,0.0001466,2]
[357630684,1744254518457,14121.6,0.0001466,2]
[357630685,1744254529929,-1681.53326979,0.000149,2]
[357630686,1744254529956,-250.0,0.00014922,2]
[357630687,1744254529983,-150.0,0.00014988,2]
[357630688,1744254530012,-300.0,0.00014988,2]
[357630689,1744254530048,-1560.1688751,0.00014989,2]
[357630690,1744254530083,-1993.51795642,0.00014989,2]
[357630691,1744254530124,-2751.53098418,0.00014989,2]
[357630692,1744254530154,-3183.68911713,0.00014989,2]
[357630693,1744254531875,200.0,0.00014656,7]
[357630694,1744254550259,200.0,0.00014676,2]
[357630695,1744254551003,150.0,0.00014676,2]
[357630696,1744254605420,-293.38423639,0.00014975,2]
[357630697,1744254612345,3165.75,0.00014683,2]
[357630700,1744254632318,-131.39370738,0.00014975,2]
[357630701,1744254632327,-1793.69758324,0.00014989,2]
[357630702,1744254632423,-558.8778189,0.00014989,2]
[357630703,1744254632434,-20887.05522395,0.00014989,2]
[357630704,1744254632445,-1661.53110685,0.00014989,2]
[357631152,1744254638334,-2921.81956918,0.00014989,2]
[357631153,1744254638348,-714.42729958,0.00014989,2]
[357631154,1744254638501,-999.4445123,0.00014989,2]
[357631204,1744254640586,-12466.0839861,0.00014989,2]
[357631205,1744254640727,-1328.34595672,0.00014989,2]
[357631206,1744254640905,-868.4782622,0.00014989,2]
[357631287,1744254646455,-5628.77599296,0.00014989,2]
[357631288,1744254646493,-1641.968492,0.00014989,2]
[357631289,1744254646671,-885.89201892,0.00014989,2]
[357631290,1744254646680,-4532.1848936,0.00014989,2]
[357631291,1744254646691,-352.4414959,0.00014999,2]
[357631292,1744254646701,-152.17203824,0.00014999,2]
[357631293,1744254646710,-150.0,0.00014999,2]
[357631294,1744254646721,-17958.37639704,0.00015,2]
[357631314,1744254662410,-191.30404326,0.000149,2]
[357631315,1744254663729,3129.43,0.00014829,2]
[357631316,1744254670745,446.09,0.00014701,2]
[357631317,1744254684326,428.97,0.00014701,2]
[357631318,1744254719011,288.703263,0.00014825,2]
[357631319,1744254743940,436.28870307,0.00014565,2]
[357631320,1744254744587,-157.91,0.000149,2]
[357631321,1744254757754,-272.28985674,0.000149,2]
[357631322,1744254757780,-27.71014326,0.000149,2]
[357631323,1744254770610,318.93,0.00014684,2]
[357631324,1744254792456,157.91,0.00014825,2]
[357631325,1744254800343,-180.07225361,0.000149,2]
[357631326,1744254801070,1000.0,0.00014703,2]
[357631327,1744254811550,150.0,0.00014835,2]
[357631328,1744254826862,235.77,0.00014688,2]
[357631329,1744254843380,-300.0,0.00014899,2]
[357631330,1744254863627,-219.92774639,0.000149,2]
[357631331,1744254867488,23900.0,0.00014692,2]
[357631332,1744254891144,-151.0,0.000149,2]
[357631333,1744254978001,336.29,0.00014668,2]
[357631334,1744254992204,152.42474175,0.00014847,2]
[357631335,1744254995064,250.0,0.00014672,2]
[357631336,1744255021844,6549.80102816,0.0001485,2]
[357631337,1744255031195,164.93,0.0001468,2]
[357631338,1744255106039,787.19,0.0001468,2]
[357631339,1744255129967,421.28985674,0.000148,2]
[357631340,1744255130040,1000.0,0.000148,2]
[357631341,1744255130091,1027.0,0.000148,2]
[357631342,1744255165102,804.58,0.00014689,2]
[357631343,1744255181446,418.78,0.00014698,2]
[357631344,1744255208917,200.0,0.00014696,2]
[357631345,1744255226949,2751.0,0.0001469,2]
[357631346,1744255234933,1000.0,0.000148,2]
[357631347,1744255235001,1936.0,0.000148,2]
[357631348,1744255264979,1012.0,0.000148,2]
[357631349,1744255268623,436.28870307,0.00014535,2]
[357631350,1744255291661,150.0,0.00014839,2]
[357631351,1744255352146,150.0,0.00014763,2]
[357631352,1744255356905,161.28,0.00011761,2]
[357631353,1744255367168,469.4,0.00014702,2]
[357631354,1744255377008,-150.0,0.00014899,2]
[357631355,1744255377031,-160.29043008,0.00014899,2]
[357631356,1744255386264,-150.0,0.00014899,2]
[357631357,1744255412462,150.0,0.00014778,2]
[357631358,1744255412541,-150.0,0.00014899,2]
[357631359,1744255438571,175.87,0.0001436,2]
[357631360,1744255450284,150.0,0.00014786,2]
[357631361,1744255450340,150.0,0.00014856,2]
[357631362,1744255450389,150.0,0.0001477,2]
[357631363,1744255450426,150.0,0.00014792,2]
[357631364,1744255450473,150.0,0.00014833,2]
[357631365,1744255450517,150.0,0.00014736,2]
[357631366,1744255450577,150.0,0.0001486,2]
[357631367,1744255450635,150.0,0.00014852,2]
[357631368,1744255450674,150.0,0.0001479,2]
[357631369,1744255450763,150.0,0.00014726,2]
[357631370,1744255450842,150.0,0.00014791,2]
[357631371,1744255450879,150.0,0.00014762,2]
[357631372,1744255450928,150.0,0.00014741,2]
[357631373,1744255450995,150.0,0.00014757,2]
[357631374,1744255471778,150.0,0.00014754,2]
[357631375,1744255471828,150.0,0.00014875,2]
[357631376,1744255478726,1226.51,0.00012092,2]
[357631377,1744255478942,1226.51,0.00014356,2]
[357631378,1744255483763,43901.12,0.00014114,2]
[357631379,1744255533253,376.35,0.00014,2]
[357631380,1744255565461,-150.0,0.00014886,2]
[357631381,1744255565487,-31.07,0.00014888,2]
[357631382,1744255579483,150.0,0.00014021,2]
[357631383,1744255602850,270.0,0.00014888,30]
[357631384,1744255604993,200.0,0.00014028,7]
[357631385,1744255605622,184.72,0.00014576,2]
[357631386,1744255634092,2699.99,0.00014002,2]
[357631387,1744255665412,500.0,0.00013997,2]
[357631390,1744255734267,-218.93,0.00014888,2]
[357631392,1744255734299,-150.0,0.0001489,2]
[357631393,1744255734329,-150.0,0.00014899,2]
[357631395,1744255734359,-300.0,0.00014899,2]
[357631396,1744255734393,-1816.1821,0.000149,2]
[357631397,1744255734424,-634.1228,0.000149,2]
[357631398,1744255734456,-193.8647,0.000149,2]
[357631399,1744255734485,-747.6229,0.000149,2]
[357631400,1744255734514,-1733.77186595,0.000149,2]
[357631401,1744255734558,-5122.52273155,0.000149,2]
[357631402,1744255759619,-300.0,0.00014899,2]
[357631404,1744255759649,-5865.8347079,0.000149,2]
[357631406,1744255759682,-5148.04325723,0.000149,2]
[357631408,1744255766142,436.28870307,0.00014576,2]
[357631412,1744255785068,-5212.84453737,0.000149,2]
[357631413,1744255785098,-150.0,0.00014905,2]
[357631414,1744255785126,-156.28715357,0.00014906,2]
[357631415,1744255785157,-150.0,0.00014911,2]
[357631416,1744255785186,-150.0,0.00014912,2]
[357631417,1744255785214,-150.0,0.00014914,2]
[357631418,1744255785241,-150.0,0.00014919,2]
[357631419,1744255785269,-150.0,0.00014923,2]
[357631420,1744255785298,-122.98057626,0.00014927,2]
[357631421,1744255785338,-27.01942374,0.00014927,2]
[357631422,1744255785367,-150.0,0.00014935,2]
[357631423,1744255785394,-150.0,0.00014938,2]
[357631424,1744255785422,-150.0,0.00014941,2]
[357631425,1744255785451,-150.0,0.00014952,2]
[357631426,1744255785479,-198.90386626,0.00014961,2]
[357631427,1744255786065,-523.6395,0.00014961,2]
[357631429,1744255804589,-150.0,0.0001496,2]
[357631430,1744255804613,-8.13580927,0.00014961,2]
[357631446,1744255831686,-576.14419186,0.00014961,2]
[357631448,1744255831695,-150.0,0.00014968,2]
[357631450,1744255831704,-168.48518084,0.00014973,2]
[357631452,1744255831714,-178.32687399,0.00014979,2]
[357631454,1744255831723,-150.0,0.00014981,2]
[357631456,1744255831731,-150.0,0.00014983,2]
[357631457,1744255831741,-150.0,0.00014988,2]
[357631459,1744255831750,-4809.68761839,0.00014989,2]
[357631462,1744255831788,150.0,0.00014781,2]
[357631463,1744255831801,-20759.53924991,0.00014989,2]
[357631464,1744255831810,-3363.5578706,0.0001499,2]
[357631465,1744255831820,-907.5796547,0.0001499,2]
[357631467,1744255831829,-2864.3947965,0.0001499,2]
[357631468,1744255831839,-4115.35,0.0001499,2]
[357631470,1744255831848,-3669.68729084,0.0001499,2]
[357631473,1744255831868,-445.66270916,0.0001499,2]
[357631474,1744255831877,-42260.1053273,0.00015,2]
[357631475,1744255831888,-76180.17112777,0.00015,2]
[357631476,1744255831897,-193.39,0.00015,2]
[357631477,1744255831906,-1000.0,0.00015,2]
[357631478,1744255831915,-1000.0,0.00015,2]
[357631479,1744255831925,-1000.0,0.00015,2]
[357631480,1744255831934,-1000.0,0.00015,2]
[357631481,1744255831944,-1000.0,0.00015,2]
[357631482,1744255831953,-1000.0,0.00015,2]
[357631483,1744255831962,-1000.0,0.00015,2]
[357631484,1744255831971,-1000.0,0.00015,2]
[357631485,1744255831980,-1000.0,0.00015,2]
[357631486,1744255831990,-1000.0,0.00015,2]
[357631487,1744255832001,-1000.0,0.00015,2]
[357631488,1744255832010,-1000.0,0.00015,2]
[357631489,1744255832020,-1000.0,0.00015,2]
[357631490,1744255832030,-1000.0,0.00015,2]
[357631491,1744255832039,-1000.0,0.00015,2]
[357631492,1744255832048,-214.00244918,0.00015,2]
[357631493,1744255832058,-170.03766194,0.00015,2]
[357631494,1744255832067,-157.0,0.00015,2]
[357631495,1744255832077,-157.0,0.00015,2]
[357631496,1744255832087,-35150.65066988,0.00015,2]
[357631497,1744255838981,-1423.28813892,0.00015,2]
[357631498,1744255838998,-1015.29812472,0.00015,2]
[357631499,1744255839012,-732.27340277,0.00015,2]
[357631500,1744255839026,-544.28768912,0.00015,2]
[357631501,1744255839038,-12285.15214213,0.00015,2]
[357631503,1744255839558,-7148.67782959,0.00015,2]
[357631504,1744255839611,-840.0899425,0.00015,2]
[357631505,1744255839623,-401.28479172,0.00015,2]
[357631506,1744255839669,-1564.34766012,0.00015,2]
[357631507,1744255839681,-45981.07251855,0.00015,2]
[357631508,1744255839693,-468.67334615,0.00015,2]
[357631509,1744255839887,-68.93685249,0.00015,2]
[357631510,1744255839902,-1005.32904095,0.00015,2]
[357631511,1744255839914,-20416.49999999,0.00015,2]
[357631512,1744255840019,-33962.11887557,0.00015,2]
[357631513,1744255840032,-845.06326688,0.00015,2]
[357631514,1744255840068,-2757.24937625,0.00015,2]
[357631515,1744255840080,-1867.34186428,0.00015,2]
[357631516,1744255840092,-933.61849517,0.00015,2]
[357631528,1744255842714,-299208.67332742,0.00015,2]
[357631540,1744255843875,-9196.43880493,0.00015,2]
[357631550,1744255845563,-4112.07680122,0.0001499,2]
[357631551,1744255845575,-289.72875543,0.0001499,2]
[357631552,1744255845615,-1387.357,0.0001499,2]
[357631553,1744255845673,-2889.15725013,0.0001499,2]
[357631554,1744255845731,-816.5,0.0001499,2]
[357631555,1744255845742,-6751.95280798,0.0001499,2]
[357631556,1744255845754,-265.7457566,0.0001499,2]
[357631558,1744255870018,150.0,0.00014841,2]
[357631559,1744255908311,-150.00438417,0.000149,2]
[357631560,1744255930444,-150.0,0.000149,2]
[357631561,1744255932132,-166.42795135,0.000149,2]
[357631562,1744255977072,500.0,0.00014356,2]
[357631563,1744255977390,-150.0,0.00014938,2]
[357631565,1744256076930,-480.07225361,0.00014883,2]
[357631566,1744256109899,150.0,0.00014702,2]
[357631567,1744256109943,150.0,0.00014801,2]
[357631568,1744256109991,150.0,0.00014783,2]
[357631569,1744256110027,150.0,0.00014755,2]
[357631570,1744256110073,150.0,0.00014875,2]
[357631571,1744256110113,150.0,0.00014688,2]
[357631572,1744256110157,150.0,0.00014733,2]
[357631573,1744256110196,150.0,0.00014702,2]
[357631574,1744256110241,150.0,0.00014877,2]
[357631575,1744256110279,150.0,0.00014819,2]
[357631576,1744256110343,150.0,0.0001484,2]
[357631577,1744256110380,150.0,0.0001471,2]
[357631578,1744256110430,150.0,0.00014806,2]
[357631579,1744256110483,150.0,0.00014738,2]
[357631580,1744256110567,-150.0,0.00014896,2]
[357631581,1744256110666,150.0,0.00014819,2]
[357631582,1744256110727,150.0,0.00014873,2]
[357631583,1744256110805,150.0,0.00014759,2]
[357631584,1744256110848,150.0,0.00014747,2]
[357631585,1744256110879,150.0,0.00014704,2]
[357631586,1744256110929,150.0,0.00014748,2]
[357631587,1744256110966,150.0,0.00014876,2]
[357631588,1744256111041,150.0,0.00014721,2]
[357631589,1744256111275,150.0,0.00014871,2]
[357631590,1744256111442,150.0,0.00014878,2]
[357631591,1744256111476,150.0,0.0001485,2]
[357631592,1744256111509,150.0,0.00014719,2]
[357631593,1744256111556,150.0,0.00014864,2]
[357631594,1744256111720,150.0,0.00014837,2]
[357631595,1744256111796,150.0,0.00014874,2]
[357631596,1744256117998,150.0,0.00014872,2]
[357631597,1744256118111,150.0,0.00014749,2]
[357631598,1744256118144,150.0,0.0001479,2]
[357631599,1744256118187,150.0,0.0001478,2]
[357631600,1744256118234,150.0,0.000148,2]
[357631601,1744256118267,150.0,0.00014732,2]
[357631602,1744256118299,150.0,0.00014813,2]
[357631603,1744256118335,150.0,0.00014794,2]
[357631604,1744256118376,150.0,0.00014726,2]
[357631605,1744256118441,150.0,0.00014859,2]
[357631606,1744256121990,-150.0,0.00014881,2]
[357631607,1744256122018,-150.0,0.00014883,2]
[357631608,1744256122045,-150.0,0.00014898,2]
[357631609,1744256122073,-150.0,0.00014908,2]
[357631610,1744256122102,-150.0,0.00014914,2]
[357631611,1744256122129,-150.0,0.00014916,2]
[357631612,1744256122157,-150.0,0.00014919,2]
[357631613,1744256122184,-150.0,0.00014923,2]
[357631614,1744256122211,-150.0,0.00014936,2]
[357631615,1744256122238,-150.0,0.00014945,2]
[357631616,1744256122265,-150.0,0.00014952,2]
[357631617,1744256122291,-150.0,0.00014961,2]
[357631618,1744256122320,-150.0,0.00014961,2]
[357631619,1744256122346,-150.0,0.00014989,2]
[357631620,1744256122372,-14735.43496194,0.0001499,2]
[357631621,1744256122400,-23164.56503806,0.0001499,2]
[357631622,1744256136066,1000.0,0.00012789,2]
[357631623,1744256136129,1000.0,0.00012893,2]
[357631624,1744256136185,561.47772736,0.00012731,2]
[357631625,1744256136243,150.0,0.00014811,2]
[357631626,1744256136273,150.0,0.00014852,2]
[357631627,1744256136656,159.81985359,0.00014857,2]
[357631628,1744256151940,189.598454,0.00014807,2]
[357631629,1744256169600,150.0,0.00014875,2]
[357631630,1744256278299,400.0,0.00032,120]
[357631631,1744256316998,436.28870307,0.0001459,2]
[357631632,1744256350157,189.00844365,0.00014704,2]
[357631633,1744256359279,400.0,0.00014991,120]
[357631634,1744256410657,500.0,0.00032,120]
[357631635,1744256585270,156.37512368,0.00014873,2]
[357631636,1744256610095,1103.85,0.00014261,2]
[357631642,1744256749254,4038.40119067,0.0001,2]
[357631643,1744256762539,-150.0,0.00014882,2]
[357631644,1744256762562,-56.34033484,0.00014886,2]
[357631646,1744256777153,150.0,0.00014875,2]
[357631647,1744256796131,150.0,0.00014765,2]
[357631648,1744256796194,150.0,0.00014831,2]
[357631649,1744256796243,150.0,0.00014832,2]
[357631651,1744256828712,436.28870307,0.00014748,2]
[357631652,1744256882724,156.37512367,0.00014873,2]
[357631655,1744256998337,-193.65966516,0.00014886,2]
[357631656,1744256998368,-150.0,0.000149,2]
[357631657,1744256998397,-150.0,0.00014959,2]
[357631658,1744256998425,-150.0,0.00014972,2]
[357631659,1744256998452,-212.05042142,0.00014973,2]
[357631667,1744257031666,-395.71507794,0.00014973,2]
[357631668,1744257031675,-54.32199506,0.00014973,2]
[357631669,1744257031687,-105.48449426,0.00014973,2]
[357631670,1744257031696,-320.03305216,0.00014973,2]
[357631671,1744257031706,-155.58637599,0.00014973,2]
[357631672,1744257031715,-509.18508439,0.00014973,2]
[357631673,1744257031724,-355.24241403,0.00014973,2]
[357631674,1744257031734,-500.0,0.00014973,2]
[357631675,1744257031743,-293.22761024,0.0001499,2]
[357631678,1744257031909,-298.40194077,0.0001499,2]
[357631719,1744257038235,-3389.61799901,0.0001499,2]
[357631722,1744257039952,-662.95310854,0.0001499,2]
[357631723,1744257039964,-278.06479998,0.0001499,2]
[357631724,1744257040285,-0.00369353,0.0001499,2]
[357631737,1744257042847,-1639.81403333,0.0001499,2]
[357631738,1744257042863,-31111.3403497,0.0001499,2]
[357631739,1744257042880,-35266.1735425,0.0001499,2]
[357631740,1744257042898,-7001.2359981,0.0001499,2]
[357631741,1744257042912,-19129.14003059,0.00015,2]
[357631742,1744257042930,-150.0,0.00015,2]
[357631743,1744257042947,-283.6747734,0.00015,2]
[357631744,1744257042965,-3946.3833315,0.00015055,2]
[357631745,1744257042983,-2107.29617752,0.00015161,2]
[357631746,1744257043001,-267.18,0.0001517,2]
[357631747,1744257043017,-351.14029568,0.00015171,2]
[357631748,1744257043033,-520.0,0.0001537,2]
[357631749,1744257043048,-250.0,0.00015428,2]
[357631750,1744257043062,-287.45966805,0.00015481,2]
[357631751,1744257043079,-181.75086932,0.000156,2]
[357631752,1744257043091,-472.51150151,0.00015636,2]
[357631753,1744257043107,-151.0,0.00015655,2]
[357631754,1744257043121,-151.0,0.00015655,2]
[357631756,1744257043141,-151.0,0.00015655,2]
[357631757,1744257043156,-152.007921,0.00015655,2]
[357631758,1744257043171,-151.0,0.00015655,2]
[357631759,1744257043186,-151.0,0.00015655,2]
[357631760,1744257043201,-151.0,0.00015655,2]
[357631761,1744257043216,-756.0,0.000157,2]
[357631762,1744257043231,-167.95,0.00015734,2]
[357631763,1744257043245,-500.0,0.00015836,2]
[357631764,1744257043264,-200.0,0.00015961,2]
[357631765,1744257043280,-621.78829552,0.00015962,2]
[357631766,1744257043295,-200.0,0.00015962,2]
[357631767,1744257043310,-1349.99,0.00016016,2]
[357631768,1744257043327,-157.0,0.00016078,2]
[357631769,1744257043342,-157.76752707,0.00016078,2]
[357631770,1744257043357,-175.87,0.00016079,2]
[357631771,1744257043372,-255.0,0.00016094,2]
[357631772,1744257043388,-234.0,0.000161,2]
[357631773,1744257043406,-988.9,0.000161,2]
[357631774,1744257043420,-373.0,0.000161,2]
[357631775,1744257043436,-8975.65,0.00016116,2]
[357631776,1744257043451,-151.75,0.00016116,2]
[357631777,1744257043466,-9999.99,0.00016116,2]
[357631778,1744257043484,-999.99,0.00016116,2]
[357631779,1744257043500,-815.25,0.00016116,2]
[357631780,1744257043515,-7041.21,0.00016116,2]
[357631781,1744257043530,-150.99,0.00016116,2]
[357631782,1744257043546,-1565.47,0.00016116,2]
[357631783,1744257043562,-646.16,0.00016116,2]
[357631784,1744257043577,-7203.59,0.00016116,2]
[357631785,1744257043592,-785.81,0.00016116,2]
[357631786,1744257043608,-500.37740556,0.00016173,2]
[357631787,1744257043624,-500.0,0.00016173,2]
[357631788,1744257043639,-500.0,0.00016173,2]
[357631789,1744257043655,-157.62,0.00016181,2]
[357631790,1744257043671,-200.0,0.00016185,2]
[357631791,1744257043686,-150.0,0.00016193,2]
[357631792,1744257043702,-23900.0,0.00016193,2]
[357631793,1744257043717,-157.62,0.00016261,2]
[357631794,1744257043732,-2839.66,0.00016267,2]
[357631795,1744257043747,-481.45,0.00016293,2]
[357631796,1744257043762,-161.37,0.00016307,2]
[357631797,1744257043778,-250.0,0.00016323,2]
[357631798,1744257043794,-250.0,0.0001637,2]
[357631799,1744257043810,-250.0,0.00016375,2]
[357631800,1744257043826,-503.0,0.00016438,2]
[357631801,1744257043841,-250.0,0.0001647,2]
[357631802,1744257043858,-184.74,0.00016495,2]
[357631803,1744257043873,-649.96514291,0.0001651,2]
[357631804,1744257043888,-1103.85,0.00016525,2]
[357631805,1744257043905,-151.0,0.00016586,2]
[357631806,1744257043921,-151.0,0.00016586,2]
[357631807,1744257043936,-151.0,0.00016619,2]
[357631808,1744257043952,-872.89554,0.00016619,2]
[357631809,1744257043967,-872.89554,0.00016619,2]
[357631810,1744257043982,-203.35,0.00016712,2]
[357631811,1744257043998,-1089.0194728,0.00016722,2]
[357631812,1744257044013,-1000.0,0.00016754,2]
[357631813,1744257044028,-14515.9358,0.00016822,2]
[357631814,1744257044044,-4495.0034,0.00016822,2]
[357631815,1744257044059,-151.0,0.00017122,2]
[357631816,1744257044075,-151.0,0.00017122,2]
[357631817,1744257044090,-151.0,0.00017122,2]
[357631818,1744257044105,-153.673849,0.00017122,2]
[357631819,1744257044120,-249.44297,0.00017122,2]
[357631820,1744257044136,-196.0,0.00017307,2]
[357631821,1744257044151,-207.4,0.00017331,2]
[357631822,1744257044165,-161.37,0.00017472,2]
[357631823,1744257044181,-426.63,0.00017628,2]
[357631824,1744257044195,-152.277365,0.00017728,2]
[357631825,1744257044210,-151.0,0.00017728,2]
[357631826,1744257044225,-151.0,0.00017728,2]
[357631827,1744257044241,-151.0,0.000178,2]
[357631828,1744257044251,-151.0,0.000178,2]
[357631829,1744257044260,-872.89554,0.000178,2]
[357631830,1744257044270,-872.89554,0.000178,2]
[357631831,1744257044279,-312.1087152,0.00018,2]
[357631832,1744257044289,-167.95,0.00018331,2]
[357631833,1744257044298,-151.0,0.00018356,2]
[357631834,1744257044309,-403.51,0.00018356,2]
[357631835,1744257044319,-216.596714,0.00018533,2]
[357631836,1744257044328,-152.080899,0.00018533,2]
[357631837,1744257044338,-151.0,0.00018533,2]
[357631838,1744257044349,-151.670341,0.00018533,2]
[357631839,1744257044718,-151.0,0.00018533,2]
[357631840,1744257044758,-501.30264604,0.00018573,2]
[357631841,1744257044784,-158.22,0.00018581,2]
[357631842,1744257044793,-166.09545015,0.0001859,2]
[357631843,1744257044803,-36083.0014,0.00018591,2]
[357631844,1744257044812,-161.37,0.00018637,2]
[357631845,1744257044823,-500.0,0.00018658,2]
[357631846,1744257044833,-215.0738,0.000187,2]
[357631847,1744257044843,-1103.85,0.00018789,2]
[357631848,1744257044853,-156.84577,0.00018789,2]
[357631849,1744257044862,-151.0,0.00018789,2]
[357631850,1744257044872,-872.89554,0.00018789,2]
[357631851,1744257044882,-872.89554,0.00018789,2]
[357631852,1744257044891,-1000.0,0.00018849,2]
[357631853,1744257044900,-301.85067963,0.00018873,2]
[357631854,1744257044910,-500.0,0.00018873,2]
[357631855,1744257044919,-500.0,0.00018873,2]
[357631856,1744257044928,-500.0,0.000189,2]
[357631857,1744257044938,-8534.91646176,0.000189,2]
[357631860,1744257046310,-28662.09623824,0.000189,2]
[357631861,1744257046320,-1000.0,0.000189,2]
[357631862,1744257046329,-256.50188,0.000189,2]
[357631863,1744257046339,-151.0,0.000189,2]
[357631864,1744257046348,-151.0,0.000189,2]
[357631865,1744257046358,-186.739205,0.000189,2]
[357631866,1744257046367,-186.739205,0.000189,2]
[357631867,1744257046377,-151.0,0.000189,2]
[357631868,1744257046386,-151.0,0.000189,2]
[357631869,1744257046397,-151.0,0.000189,2]
[357631870,1744257046409,-151.0,0.000189,2]
[357631871,1744257046419,-151.0,0.000189,2]
[357631872,1744257046428,-611.010788,0.000189,2]
[357631873,1744257046437,-611.010788,0.000189,2]
[357631874,1744257046448,-33.97372171,0.000189,2]
[357631879,1744257676109,502.72981547,0.0003,120]
[357631880,1744257684101,-234.0,0.000156,2]
[357631881,1744257684123,-250.0,0.00015625,2]
[357631882,1744257717106,-516.0,0.00015839,2]
[357631883,1744257756723,-422.27,0.00015839,2]
[357631884,1744257809652,-301.7977,0.00016016,2]
[357631885,1744257809675,-250.0,0.00016267,2]
[357631886,1744257809696,-756.0,0.00017,2]
[357631887,1744257809717,-234.0,0.00017,2]
[357631888,1744257844959,-250.0,0.00017292,2]
[357631889,1744257844980,-250.0,0.00017423,2]
[357631891,1744258029947,713.014,0.00032,120]
[357631892,1744258037130,-234.0,0.00017,2]
[357631893,1744258037151,-200.0,0.00017764,2]
[357631894,1744258037171,-200.0,0.00017766,2]
[357631895,1744258037192,-250.0,0.00017771,2]
[357631896,1744258037212,-674.99,0.00017777,2]
[357631897,1744258037233,-183.0,0.00017778,2]
[357631898,1744258037255,-23900.0,0.00017779,2]
[357631899,1744258037280,-938.27,0.00018103,2]
[357631900,1744258037301,-184.74,0.00018313,2]
[357631901,1744258037323,-2959.7874986,0.00018333,2]
[357631902,1744258037345,-150.99,0.00018493,2]
[357631903,1744258037369,-177.47,0.00018493,2]
[357631904,1744258037596,-500.0,0.00018493,2]
[357631905,1744258037630,-150.0,0.00018616,2]
[357631906,1744258037653,-999.99,0.00018616,2]
[357631907,1744258037676,-150.0,0.00018632,2]
[357631908,1744258037699,-150.0,0.00018633,2]
[357631909,1744258037722,-150.0,0.00018644,2]
[357631910,1744258037748,-150.0,0.00018646,2]
[357631911,1744258037773,-150.0,0.00018651,2]
[357631912,1744258037796,-150.0,0.00018657,2]
[357631913,1744258037819,-150.0,0.00018662,2]
[357631914,1744258037842,-150.0,0.00018667,2]
[357631915,1744258037865,-150.0,0.00018668,2]
[357631916,1744258037887,-150.0,0.00018696,2]
[357631917,1744258037909,-150.0,0.00018696,2]
[357631918,1744258037931,-150.0,0.00018706,2]
[357631919,1744258037953,-150.0,0.0001871,2]
[357631920,1744258037975,-150.0,0.0001871,2]
[357631921,1744258037998,-150.0,0.00018714,2]
[357631922,1744258038022,-150.0,0.00018716,2]